bitfinex/quotes_SOLUSD_20230120
["timestamp","ask_amount","ask_price","bid_price","bid_amount"]
[1674244582905,17.96,23.327,23.31,25.01]
[1674244583105,17.0,23.326,23.311,10.0]
[1674244583313,32.15,23.333,23.32,25.13]
[1674244583531,32.14,23.338,23.32,25.13]
[1674244583831,32.14,23.338,23.312,30.87]
[1674244583832,23.75576951,23.335,23.312,10.0]
[1674244584047,10.0,23.334,23.312,10.0]
[1674244585127,10.0,23.334,23.32,25.13]
[1674244585350,10.6366701,23.337,23.32,25.13]
[1674244585546,10.6366701,23.337,23.321,23.11744894]
[1674244586164,10.6366701,23.337,23.32,25.13]
[1674244586807,10.6366701,23.337,23.318,23.11744894]
[1674244586808,75.90576951,23.336,23.31,25.01]
[1674244587008,15.16366,23.335,23.31,25.01]
[1674244587211,36.35366,23.334,23.31,25.01]
[1674244587443,10.0,23.333,23.311,10.0]
[1674244587660,50.11,23.332,23.311,10.0]
[1674244587967,10.0,23.331,23.313,10.0]
[1674244588179,32.15,23.336,23.32,25.01]
[1674244588396,25.13,23.37,23.32,25.01]
[1674244588397,32.14,23.339,23.32,25.01]
[1674244588581,32.14,23.341,23.32,25.01]
[1674244588923,10.0,23.336,23.32,25.01]
[1674244589225,42.15,23.336,23.315,23.11744894]
[1674244589421,42.15,23.336,23.316,20.0]
[1674244589628,42.15,23.336,23.317,10.0]
[1674244589843,17.0,23.335,23.319,10.0]
[1674244591217,17.0,23.335,23.318,20.0]
[1674244591427,33.11,23.334,23.304,28.83]
[1674244591629,33.11,23.334,23.308,33.58188602]
[1674244591630,21.20366,23.333,23.308,33.58188602]
[1674244591844,10.0,23.331,23.308,33.58188602]
[1674244592047,54.31366,23.33,23.3,25.33]
[1674244592253,155.70366,23.329,23.29,25.13]
[1674244592479,185.82366,23.328,23.299,23.58188602]
[1674244592683,20.0,23.327,23.299,23.58188602]
[1674244593001,64.32366,23.326,23.3,10.0]
[1674244593206,4.20366,23.325,23.291,27.32]
[1674244593428,181.62,23.324,23.29,25.13]
[1674244593633,4.20366,23.323,23.29,48.71188602]
[1674244593847,4.20366,23.323,23.291,10.0]
[1674244593848,10.0,23.321,23.291,10.0]
[1674244594157,205.83366,23.32,23.283,42.12628686]
[1674244594471,4.20366,23.319,23.29,23.58188602]
[1674244594703,191.63,23.318,23.29,23.58188602]
[1674244594900,141.5,23.316,23.29,23.58188602]
[1674244595098,131.5,23.314,23.281,10.0]
[1674244595308,10.0,23.311,23.286,23.58188602]
[1674244595514,50.14,23.31,23.286,23.58188602]
[1674244595742,32.18,23.315,23.29,25.13]
[1674244595955,10.0,23.319,23.3,25.13]
[1674244596353,42.17,23.318,23.3,25.13]
[1674244596568,42.17,23.318,23.298,23.58188602]
[1674244596774,42.17,23.318,23.3,23.58188602]
[1674244596987,42.17,23.318,23.301,10.0]
[1674244597200,118.5959,23.32,23.301,10.0]
[1674244597411,10.0,23.326,23.302,23.58188602]
[1674244597844,10.0,23.326,23.303,10.0]
[1674244598045,32.15,23.336,23.31,25.01]
[1674244598251,10.0,23.335,23.311,10.0]
[1674244598461,32.15,23.334,23.311,33.58188602]
[1674244598695,32.15,23.334,23.312,23.58188602]
[1674244598901,10.0,23.335,23.313,10.0]
[1674244599227,10.0,23.339,23.32,25.13]
[1674244599642,10.0,23.336,23.321,23.58188602]
[1674244600355,9.0,23.336,23.321,23.58188602]
[1674244600565,9.0,23.336,23.32,25.13]
[1674244600776,9.0,23.336,23.318,23.58188602]
[1674244600987,9.0,23.336,23.319,20.0]
[1674244601515,9.0,23.336,23.319,43.58188602]
[1674244601957,9.0,23.336,23.32,25.13]
[1674244602563,10.0,23.334,23.319,20.0]
[1674244602775,17.96,23.333,23.311,20.0]
[1674244602982,4.20366,23.332,23.31,25.12]
[1674244603319,131.5,23.33,23.304,23.58188602]
[1674244603512,185.82366,23.329,23.3,25.01]
[1674244603724,10.0,23.327,23.3,25.01]
[1674244603931,131.5,23.325,23.294,23.58188602]
[1674244604153,131.5,23.323,23.294,23.58188602]
[1674244604473,131.5,23.321,23.294,23.58188602]
[1674244604677,10.0,23.319,23.294,23.58188602]
[1674244604890,37.33366,23.318,23.294,23.58188602]
[1674244605081,17.0,23.317,23.294,23.58188602]
[1674244605298,0.96,23.316,23.295,20.0]
[1674244605508,0.96,23.316,23.295,10.0]
[1674244605729,10.0,23.319,23.296,23.58188602]
[1674244606155,10.0,23.319,23.29,25.13]
[1674244606349,36.37366,23.318,23.296,23.58188602]
[1674244606558,10.0,23.317,23.296,23.58188602]
[1674244606771,32.17,23.318,23.297,10.0]
[1674244607090,0.96,23.317,23.298,23.58188602]
[1674244607416,164.62,23.326,23.298,23.58188602]
[1674244607627,4.20366,23.325,23.299,10.0]
[1674244607819,32.16,23.324,23.299,30.0]
[1674244608155,0.96,23.323,23.3,23.58188602]
[1674244608352,10.96,23.323,23.301,10.0]
[1674244608563,167.87366,23.322,23.299,20.0]
[1674244608773,131.5,23.32,23.291,23.58188602]
[1674244608980,37.33366,23.319,23.28,25.12]
[1674244609196,155.70366,23.318,23.281,23.58188602]
[1674244609404,131.5,23.316,23.281,23.58188602]
[1674244609734,10.0,23.313,23.282,10.0]
[1674244609928,131.5,23.311,23.282,10.0]
[1674244610138,131.5,23.309,23.283,23.08188602]
[1674244610363,178.84366,23.308,23.284,10.0]
[1674244610567,22.16366,23.307,23.284,10.0]
[1674244610761,22.16366,23.307,23.285,23.58188602]
[1674244610971,36.39366,23.306,23.284,10.0]
[1674244611179,4.20366,23.305,23.285,23.58188602]
[1674244611387,17.96,23.304,23.285,23.58188602]
[1674244611622,10.0,23.303,23.285,23.58188602]
[1674244611834,17.0,23.302,23.282,10.0]
[1674244612144,17.0,23.302,23.271,30.42]
[1674244612145,168.85366,23.301,23.28,23.58188602]
[1674244612350,168.85366,23.301,23.248,155.69111526]
[1674244612351,21.20366,23.3,23.261,29.11]
[1674244612570,21.20366,23.3,23.272,23.58188602]
[1674244612571,131.5,23.298,23.272,23.58188602]
[1674244612768,131.5,23.296,23.273,10.0]
[1674244613090,10.0,23.293,23.273,10.0]
[1674244613301,168.87366,23.292,23.273,10.0]
[1674244613508,17.0,23.291,23.273,33.55116867]
[1674244613924,32.2,23.295,23.273,33.55116867]
[1674244614247,141.606,23.302,23.274,20.0]
[1674244614560,141.606,23.302,23.274,43.55116867]
[1674244614776,10.0,23.306,23.28,25.01]
[1674244614969,32.19,23.305,23.281,20.0]
[1674244615308,10.0,23.308,23.281,20.0]
[1674244615309,32.19,23.307,23.281,75.77116867]
[1674244615498,14.20366,23.306,23.283,10.0]
[1674244615715,14.20366,23.306,23.284,20.0]
[1674244615913,14.20366,23.306,23.284,43.55116867]
[1674244616124,4.20366,23.305,23.285,33.55116867]
[1674244616345,4.20366,23.305,23.286,20.0]
[1674244616555,4.20366,23.305,23.287,10.0]
[1674244616765,4.20366,23.305,23.288,20.0]
[1674244616962,10.0,23.306,23.288,20.0]
[1674244617399,10.0,23.306,23.287,23.55116867]
[1674244617607,167.89366,23.305,23.274,29.47]
[1674244617825,131.5,23.303,23.279,23.55116867]
[1674244618133,10.0,23.3,23.271,10.0]
[1674244618341,53.40366,23.299,23.276,23.55116867]
[1674244618549,10.0,23.297,23.277,10.0]
[1674244618746,49.2,23.296,23.276,23.55116867]
[1674244618953,49.2,23.296,23.277,23.55116867]
[1674244619167,0.96,23.295,23.278,20.0]
[1674244619597,10.96,23.295,23.278,43.55116867]
[1674244619811,10.0,23.293,23.278,43.55116867]
[1674244620011,17.96,23.292,23.278,43.55116867]
[1674244620867,10.0,23.295,23.278,43.55116867]
[1674244621066,10.0,23.295,23.279,10.0]
[1674244621599,10.0,23.295,23.279,33.55116867]
[1674244622127,10.0,23.295,23.278,20.0]
[1674244622444,10.0,23.295,23.271,10.0]
[1674244622445,10.0,23.293,23.275,10.0]
[1674244622649,17.96,23.292,23.276,20.0]
[1674244622866,17.96,23.292,23.276,43.55116867]
[1674244623054,0.96,23.292,23.277,23.55116867]
[1674244623265,0.96,23.292,23.278,20.0]
[1674244623475,0.96,23.292,23.267,23.29]
[1674244623700,135.70366,23.291,23.263,22.01]
[1674244624020,10.0,23.289,23.268,33.55116867]
[1674244624344,0.96,23.288,23.268,10.0]
[1674244624535,0.96,23.288,23.268,33.55116867]
[1674244624748,157.9303,23.298,23.27,25.12]
[1674244624958,117.5343,23.297,23.271,20.45]
[1674244625177,117.5343,23.297,23.272,10.0]
[1674244625383,115.7303,23.298,23.272,33.55116867]
[1674244625700,115.7303,23.298,23.28,25.01]
[1674244625887,32.19,23.306,23.28,25.01]
[1674244626093,111.7712,23.32,23.281,86.62116867]
[1674244626094,32.18,23.312,23.281,86.62116867]
[1674244626518,32.18,23.315,23.29,25.01]
[1674244626728,10.0,23.314,23.29,25.01]
[1674244626961,32.18,23.312,23.291,23.55116867]
[1674244627365,42.18,23.313,23.291,23.55116867]
[1674244627576,42.18,23.313,23.3,25.01]
[1674244627577,10.0,23.313,23.3,25.01]
[1674244627895,150.5039,23.33,23.3,25.01]
[1674244628229,154.70756,23.33,23.301,86.58116867]
[1674244628528,154.70756,23.33,23.301,46.03]
[1674244628718,10.0,23.329,23.302,33.55116867]
[1674244628934,167.86366,23.328,23.302,33.55116867]
[1674244629280,10.0,23.326,23.303,33.55116867]
[1674244629587,10.0,23.329,23.31,25.13]
[1674244629996,65.90576951,23.336,23.31,48.68116867]
[1674244630211,42.15,23.336,23.31,48.68116867]
[1674244630523,10.0,23.33,23.31,25.13]
[1674244630733,10.0,23.33,23.305,33.55116867]
[1674244630734,42.15,23.33,23.305,33.55116867]
[1674244631054,10.0,23.33,23.306,20.0]
[1674244631457,10.0,23.33,23.307,33.55116867]
[1674244631664,10.0,23.33,23.294,28.58]
[1674244631665,52.16,23.329,23.294,28.58]
[1674244631987,27.95942951,23.328,23.3,48.56116867]
[1674244632197,52.16,23.327,23.3,48.56116867]
[1674244632421,10.0,23.325,23.301,10.0]
[1674244632629,17.0,23.324,23.301,10.0]
[1674244632845,17.0,23.324,23.302,23.55116867]
[1674244633364,10.0,23.323,23.302,23.55116867]
[1674244633596,17.0,23.322,23.302,23.55116867]
[1674244633983,0.96,23.321,23.303,10.0]
[1674244634393,0.96,23.321,23.303,57.10233734]
[1674244634635,118.4209,23.331,23.304,44.1]
[1674244634946,118.4209,23.331,23.31,25.13]
[1674244635354,118.4209,23.331,23.311,33.55116867]
[1674244635780,118.4209,23.331,23.311,10.0]
[1674244636185,118.4209,23.331,23.312,43.55116867]
[1674244636394,32.14,23.339,23.312,43.55116867]
[1674244636622,10.0,23.339,23.313,10.0]
[1674244636835,14.8403301,23.337,23.314,20.0]
[1674244637032,14.8403301,23.337,23.315,17.0]
[1674244637247,10.6366701,23.337,23.316,20.0]
[1674244637482,10.6366701,23.337,23.32,25.13]
[1674244637895,10.6366701,23.337,23.316,43.55116867]
[1674244637896,23.75576951,23.336,23.317,10.0]
[1674244638100,36.35366,23.336,23.317,10.0]
[1674244638423,4.20366,23.336,23.311,10.0]
[1674244638644,10.6366701,23.337,23.32,25.13]
[1674244639381,10.6366701,23.337,23.321,10.0]
[1674244639578,10.0,23.336,23.317,23.55116867]
[1674244639793,10.0,23.336,23.318,20.0]
[1674244640003,17.96,23.335,23.318,20.0]
[1674244640216,17.96,23.335,23.312,20.0]
[1674244640426,10.0,23.334,23.313,10.0]
[1674244640739,0.96,23.333,23.314,20.0]
[1674244641064,0.96,23.333,23.304,27.62]
[1674244641247,32.15,23.332,23.3,25.01]
[1674244641453,10.0,23.331,23.302,23.55782569]
[1674244641679,32.15,23.33,23.304,23.55782569]
[1674244641888,20.96,23.329,23.291,40.2570862]
[1674244642108,49.16,23.328,23.296,23.55782569]
[1674244642417,10.0,23.326,23.29,25.13]
[1674244642628,131.5,23.324,23.289,23.55782569]
[1674244642840,25.13,23.32,23.289,23.55782569]
[1674244643039,181.63,23.319,23.27,48.68]
[1674244643242,10.0,23.316,23.28,23.55782569]
[1674244643571,7.87277181,23.313,23.272,23.55782569]
[1674244643791,73.38366,23.312,23.272,23.55782569]
[1674244643992,117.5769,23.311,23.272,23.55782569]
[1674244644202,10.0,23.309,23.273,10.0]
[1674244644401,69.18,23.308,23.273,10.0]
[1674244644606,0.96,23.307,23.28,25.01]
[1674244644867,32.19,23.306,23.28,25.01]
[1674244645037,17.96,23.305,23.281,23.55782569]
[1674244645242,10.0,23.303,23.273,10.0]
[1674244645459,49.19,23.302,23.274,23.55782569]
[1674244645690,50.15,23.302,23.274,23.55782569]
[1674244646192,10.0,23.301,23.274,23.55782569]
[1674244646405,50.16,23.3,23.275,10.0]
[1674244646619,33.16,23.3,23.275,10.0]
[1674244646940,32.19,23.302,23.276,23.55782569]
[1674244647164,141.5,23.316,23.28,25.13]
[1674244647165,32.19,23.307,23.28,25.13]
[1674244647337,10.0,23.306,23.281,10.0]
[1674244647550,10.0,23.306,23.281,33.55782569]
[1674244647761,10.0,23.306,23.283,10.0]
[1674244648192,173.69,23.306,23.283,10.0]
[1674244648636,173.69,23.306,23.282,23.55782569]
[1674244648829,173.69,23.306,23.277,10.0]
[1674244649046,17.96,23.305,23.278,23.55782569]
[1674244649259,32.19,23.304,23.279,10.0]
[1674244649458,32.19,23.304,23.28,25.12]
[1674244649666,32.18,23.31,23.28,72.14782569]
[1674244649892,32.18,23.308,23.281,23.55782569]
[1674244650315,10.0,23.307,23.282,30.0]
[1674244650528,32.19,23.306,23.282,30.0]
[1674244650721,163.69,23.306,23.282,23.55782569]
[1674244650927,163.69,23.306,23.279,10.0]
[1674244651137,10.0,23.304,23.279,33.55782569]
[1674244651346,50.15,23.303,23.279,33.55782569]
[1674244651570,10.0,23.302,23.279,33.55782569]
[1674244651789,32.19,23.305,23.28,25.13]
[1674244652003,10.0,23.307,23.281,17.0]
[1674244652195,10.0,23.307,23.282,30.0]
[1674244652412,32.18,23.308,23.282,53.55782569]
[1674244652611,32.18,23.315,23.29,25.13]
[1674244652823,32.17,23.319,23.291,17.0]
[1674244653033,109.8474,23.32,23.291,23.55782569]
[1674244653034,10.0,23.314,23.291,23.55782569]
[1674244653363,32.18,23.313,23.285,10.0]
[1674244653581,32.18,23.313,23.288,23.55782569]
[1674244653791,10.0,23.312,23.29,10.0]
[1674244654005,0.96,23.311,23.29,10.0]
[1674244655257,0.96,23.311,23.289,20.0]
[1674244655452,20.96,23.311,23.29,23.55782569]
[1674244655662,55.93576951,23.31,23.27,25.01]
[1674244655885,212.32576951,23.31,23.275,23.09619138]
[1674244656086,131.5,23.308,23.266,22.14]
[1674244656303,131.5,23.306,23.265,33.09619138]
[1674244656524,131.5,23.304,23.269,23.09619138]
[1674244656714,131.5,23.302,23.269,23.09619138]
[1674244656921,74.35366,23.303,23.267,10.0]
[1674244656922,131.5,23.3,23.267,10.0]
[1674244657153,131.5,23.3,23.255,22.49]
[1674244657154,131.5,23.298,23.255,22.49]
[1674244657338,131.5,23.296,23.26,23.09619138]
[1674244657552,131.5,23.294,23.26,23.09619138]
[1674244657764,131.5,23.292,23.26,23.09619138]
[1674244657976,37.37366,23.291,23.26,23.09619138]
[1674244658181,20.0,23.29,23.26,23.09619138]
[1674244658395,20.0,23.29,23.251,37.20973019]
[1674244658396,33.17,23.289,23.251,37.20973019]
[1674244658617,37.0,23.288,23.251,33.08657834]
[1674244658829,32.21,23.287,23.251,23.08657834]
[1674244659035,173.66366,23.286,23.251,23.08657834]
[1674244659247,131.5,23.284,23.252,33.08657834]
[1674244659458,131.5,23.282,23.241,23.85]
[1674244659661,52.22,23.281,23.251,23.08657834]
[1674244659888,27.96,23.28,23.252,10.0]
[1674244660081,52.23,23.279,23.252,10.0]
[1674244660299,10.0,23.278,23.251,23.08657834]
[1674244660517,10.0,23.276,23.251,23.08657834]
[1674244660705,10.0,23.276,23.242,10.0]
[1674244660706,50.19,23.275,23.242,10.0]
[1674244660917,50.19,23.275,23.243,23.08657834]
[1674244661126,10.0,23.274,23.244,10.0]
[1674244661342,49.23,23.273,23.244,10.0]
[1674244661561,73.94576951,23.273,23.245,23.08657834]
[1674244661774,10.0,23.272,23.247,10.0]
[1674244662087,10.0,23.27,23.247,10.0]
[1674244662307,50.2,23.269,23.248,43.08657834]
[1674244662521,10.0,23.268,23.248,43.08657834]
[1674244662735,17.96,23.267,23.248,43.08657834]
[1674244663137,17.96,23.267,23.249,10.0]
[1674244663344,33.75576951,23.275,23.249,33.08657834]
[1674244663345,42.23,23.275,23.249,33.08657834]
[1674244663685,10.0,23.274,23.251,10.0]
[1674244663890,32.23,23.273,23.249,10.0]
[1674244664088,10.0,23.272,23.249,33.08657834]
[1674244664302,32.24,23.271,23.249,33.08657834]
[1674244664633,17.96,23.27,23.249,33.08657834]
[1674244664843,32.24,23.271,23.249,33.08657834]
[1674244665240,10.0,23.272,23.249,33.08657834]
[1674244665449,10.0,23.272,23.249,10.0]
[1674244667561,10.0,23.272,23.248,20.0]
[1674244667562,187.49576951,23.271,23.248,20.0]
[1674244667881,131.5,23.269,23.236,22.28]
[1674244668089,50.2,23.268,23.238,10.0]
[1674244668296,20.0,23.267,23.238,10.0]
[1674244668507,32.24,23.266,23.24,25.13]
[1674244668724,32.24,23.271,23.241,25.2]
[1674244668929,32.24,23.271,23.241,10.0]
[1674244669125,10.0,23.27,23.241,33.08657834]
[1674244669338,32.24,23.269,23.242,20.0]
[1674244669892,43.75576951,23.268,23.241,10.0]
[1674244670083,60.2,23.267,23.241,10.0]
[1674244670297,20.0,23.266,23.241,10.0]
[1674244670506,50.2,23.265,23.241,10.0]
[1674244670826,10.0,23.264,23.241,10.0]
[1674244671042,17.96,23.263,23.241,10.0]
[1674244671262,50.21,23.263,23.241,10.0]
[1674244671564,10.0,23.262,23.241,10.0]
[1674244671756,17.96,23.261,23.241,10.0]
[1674244671967,10.0,23.26,23.241,10.0]
[1674244672300,17.96,23.259,23.238,10.0]
[1674244672612,32.25,23.258,23.23,48.09657834]
[1674244673015,17.0,23.257,23.238,23.08657834]
[1674244673251,49.25,23.259,23.232,42.48097019]
[1674244673560,49.25,23.259,23.233,10.0]
[1674244673561,10.0,23.258,23.233,10.0]
[1674244673756,32.26,23.257,23.234,20.0]
[1674244673975,17.0,23.256,23.229,10.0]
[1674244674174,42.26,23.255,23.222,10.0]
[1674244674383,17.0,23.254,23.222,10.0]
[1674244674595,52.26,23.253,23.22,25.17]
[1674244674813,56.01576951,23.253,23.22,25.17]
[1674244675033,32.25,23.259,23.23,25.12]
[1674244675227,32.25,23.26,23.231,32.29]
[1674244675875,10.0,23.259,23.233,10.0]
[1674244676089,10.0,23.259,23.234,17.0]
[1674244676402,10.0,23.259,23.235,20.0]
[1674244676605,10.0,23.259,23.236,10.0]
[1674244676930,10.0,23.259,23.237,43.08657834]
[1674244677453,10.0,23.259,23.238,33.08657834]
[1674244677664,42.25,23.259,23.238,33.08657834]
[1674244677854,32.25,23.26,23.24,10.0]
[1674244678071,10.0,23.261,23.24,10.0]
[1674244678378,42.25,23.261,23.24,10.0]
[1674244679342,17.0,23.26,23.24,10.0]
[1674244679529,10.0,23.259,23.239,20.0]
[1674244679739,17.0,23.258,23.239,20.0]
[1674244679969,17.0,23.26,23.24,10.0]
[1674244680175,0.96,23.259,23.24,10.0]
[1674244680386,150.2616,23.262,23.24,33.08657834]
[1674244680583,108.0116,23.262,23.24,58.21657834]
[1674244681012,32.25,23.264,23.242,10.0]
[1674244681206,150.694,23.271,23.25,25.13]
[1674244681417,118.454,23.271,23.243,75.35657834]
[1674244681645,32.24,23.269,23.243,43.08657834]
[1674244682078,10.0,23.264,23.244,10.0]
[1674244682267,32.24,23.269,23.245,20.0]
[1674244682479,32.24,23.269,23.245,43.08657834]
[1674244682691,118.454,23.271,23.25,25.13]
[1674244682899,10.0,23.273,23.251,10.0]
[1674244683111,42.23,23.275,23.251,10.0]
[1674244683112,10.0,23.275,23.252,17.0]
[1674244683426,10.0,23.275,23.252,23.08657834]
[1674244683630,32.23,23.274,23.253,23.08657834]
[1674244683849,10.0,23.273,23.254,27.0]
[1674244684051,10.0,23.273,23.255,20.0]
[1674244684919,10.0,23.277,23.256,10.0]
[1674244685121,10.0,23.277,23.26,25.12]
[1674244685328,10.0,23.282,23.26,25.12]
[1674244685640,144.3788,23.295,23.27,25.01]
[1674244686063,144.3788,23.295,23.271,50.08657834]
[1674244686064,10.0,23.294,23.271,50.08657834]
[1674244686467,10.0,23.294,23.271,33.08657834]
[1674244686675,10.0,23.294,23.272,20.0]
[1674244686906,10.0,23.294,23.273,17.0]
[1674244687116,10.0,23.294,23.273,33.08657834]
[1674244687310,10.0,23.294,23.273,10.0]
[1674244687519,10.0,23.294,23.271,10.0]
[1674244687520,32.21,23.293,23.264,23.08657834]
[1674244687724,32.21,23.293,23.265,20.0]
[1674244687936,10.0,23.292,23.265,20.0]
[1674244688152,10.0,23.292,23.261,10.0]
[1674244688153,10.0,23.29,23.262,20.0]
[1674244688367,50.17,23.289,23.262,20.0]
[1674244688585,50.17,23.289,23.262,43.08657834]
[1674244688776,0.96,23.289,23.263,33.08657834]
[1674244689012,32.21,23.289,23.264,20.0]
[1674244689317,32.21,23.289,23.265,23.08657834]
[1674244689537,10.0,23.288,23.266,10.0]
[1674244689852,10.0,23.288,23.268,10.0]
[1674244690080,17.96,23.287,23.269,20.0]
[1674244690299,10.0,23.288,23.27,10.0]
[1674244690502,10.0,23.288,23.269,20.0]
[1674244690691,10.0,23.288,23.267,20.0]
[1674244691119,32.21,23.287,23.258,23.08657834]
[1674244691324,52.21,23.287,23.258,23.08657834]
[1674244691538,27.96,23.286,23.264,23.08657834]
[1674244691766,10.0,23.284,23.264,23.08657834]
[1674244692082,17.96,23.283,23.259,10.0]
[1674244692269,10.0,23.282,23.26,23.08657834]
[1674244692476,17.96,23.281,23.26,23.08657834]
[1674244692708,17.96,23.281,23.25,25.01]
[1674244692709,50.18,23.281,23.25,67.49097019]
[1674244692921,10.0,23.28,23.255,23.08657834]
[1674244693240,50.19,23.279,23.257,23.08657834]
[1674244693437,10.0,23.278,23.258,10.0]
[1674244693633,50.19,23.277,23.258,10.0]
[1674244693849,50.19,23.277,23.259,23.08657834]
[1674244694066,17.96,23.277,23.259,23.08657834]
[1674244694387,10.0,23.276,23.259,23.08657834]
[1674244694571,17.96,23.275,23.259,23.08657834]
[1674244694786,10.0,23.274,23.26,20.0]
[1674244695009,17.96,23.273,23.26,20.0]
[1674244695418,32.23,23.272,23.24,35.13]
[1674244695639,32.23,23.272,23.241,10.0]
[1674244695640,10.0,23.27,23.241,10.0]
[1674244695833,32.24,23.269,23.241,10.0]
[1674244696042,10.0,23.27,23.241,10.0]
[1674244696043,17.96,23.268,23.25,25.13]
[1674244696476,17.96,23.268,23.251,10.0]
[1674244696903,110.5595,23.276,23.251,33.08657834]
[1674244697101,110.5595,23.276,23.252,33.22]
[1674244697318,10.0,23.283,23.253,10.0]
[1674244697528,10.0,23.283,23.254,33.22]
[1674244697841,10.0,23.283,23.255,33.35220701]
[1674244698048,10.0,23.283,23.256,50.22]
[1674244698261,10.0,23.283,23.257,30.0]
[1674244698262,10.0,23.281,23.257,30.0]
[1674244698476,10.0,23.281,23.257,20.0]
[1674244698782,55.98576951,23.279,23.256,20.0]
[1674244698989,55.98576951,23.279,23.252,20.0]
[1674244699226,187.48576951,23.279,23.252,20.0]
[1674244699425,51.71576951,23.278,23.252,20.0]
[1674244699618,10.0,23.276,23.252,20.0]
[1674244699832,50.19,23.275,23.252,20.0]
[1674244700057,49.23,23.275,23.253,17.0]
[1674244700273,17.0,23.275,23.254,20.0]
[1674244700484,17.0,23.275,23.255,17.0]
[1674244700694,10.0,23.278,23.257,10.0]
[1674244700898,10.0,23.278,23.259,10.0]
[1674244701100,10.0,23.278,23.26,37.0]
[1674244701342,32.22,23.284,23.26,85.36220701]
[1674244701551,32.21,23.289,23.261,24.31220701]
[1674244701877,32.21,23.293,23.27,25.13]
[1674244702094,10.0,23.294,23.271,17.96]
[1674244702398,149.981,23.308,23.28,25.12]
[1674244702616,10.0,23.307,23.282,10.0]
[1674244702807,32.19,23.306,23.282,10.0]
[1674244703018,32.19,23.306,23.282,33.35220701]
[1674244703645,10.0,23.305,23.29,23.45]
[1674244707011,10.0,23.305,23.281,10.0]
[1674244707012,10.0,23.305,23.28,23.45]
[1674244707220,52.19,23.304,23.28,23.45]
[1674244707460,17.96,23.303,23.28,23.45]
[1674244707646,42.19,23.302,23.28,23.45]
[1674244707853,17.96,23.301,23.28,23.45]
[1674244708074,10.0,23.299,23.281,10.0]
[1674244708289,17.96,23.298,23.281,10.0]
[1674244708486,10.0,23.297,23.281,10.0]
[1674244708714,17.96,23.296,23.281,10.0]
[1674244709233,17.96,23.296,23.27,10.0]
[1674244709234,52.2,23.295,23.27,33.45]
[1674244709436,17.0,23.294,23.262,10.0]
[1674244709645,131.5,23.292,23.262,10.0]
[1674244709974,49.21,23.291,23.263,23.35220701]